{"text_format":"3","workbook":"xlsx","n_sheets":6,"sheets":["Értékesítési hívásnapló","Ügyfelek elérhetőségi adatai","Hívás előtt","Első hívás","Értékesítési adatok","További teendők"],"not_rendered":{"defined_names":14},"read":"whole","date_system":"1900"}

{"sheet":"Értékesítési hívásnapló","index":0,"n_rows":13,"n_cols":7,"rows_kept":13}
[null," Vállalat neve"]
[null,"Értékesítési hívásnapló"]
[null,"Hívás száma","Ügyfél","Vállalat","Dátum","Időpont","Megjegyzések"]
[null,1,"Szabó János",{"$f":"IF(ÉrtékesítésiHívásnapló[[#This Row],[Ügyfél]]=\"\",\"\",IFERROR(VLOOKUP(ÉrtékesítésiHívásnapló[[#This Row],[Ügyfél]],ÜgyfélElérhetőségiAdatai[],2,0),\"Not Found\"))","v":"Proseware, Inc."},{"$f":"TODAY()-5","v":"2017-10-07"},"08:30:00"]
[null,2,"Pataki Tivadar",{"$f":"IF(ÉrtékesítésiHívásnapló[[#This Row],[Ügyfél]]=\"\",\"\",IFERROR(VLOOKUP(ÉrtékesítésiHívásnapló[[#This Row],[Ügyfél]],ÜgyfélElérhetőségiAdatai[],2,0),\"Not Found\"))","v":"Litware, Inc."},{"$f":"TODAY()-5","v":"2017-10-07"},"09:00:00"]
[null,3,"Orosz Fanni",{"$f":"IF(ÉrtékesítésiHívásnapló[[#This Row],[Ügyfél]]=\"\",\"\",IFERROR(VLOOKUP(ÉrtékesítésiHívásnapló[[#This Row],[Ügyfél]],ÜgyfélElérhetőségiAdatai[],2,0),\"Not Found\"))","v":"Northwind Traders"},"2017-10-07","09:30:00"]
[null,4,"Nagy István",{"$f":"IF(ÉrtékesítésiHívásnapló[[#This Row],[Ügyfél]]=\"\",\"\",IFERROR(VLOOKUP(ÉrtékesítésiHívásnapló[[#This Row],[Ügyfél]],ÜgyfélElérhetőségiAdatai[],2,0),\"Not Found\"))","v":"Lucerne Publishing"},"2017-10-07","10:00:00"]
[null,5,"Váradi Zalán",{"$f":"IF(ÉrtékesítésiHívásnapló[[#This Row],[Ügyfél]]=\"\",\"\",IFERROR(VLOOKUP(ÉrtékesítésiHívásnapló[[#This Row],[Ügyfél]],ÜgyfélElérhetőségiAdatai[],2,0),\"Not Found\"))","v":"Margie's Travel"},"2017-10-07","10:30:00"]
[null,6,"Szabó János",{"$f":"IF(ÉrtékesítésiHívásnapló[[#This Row],[Ügyfél]]=\"\",\"\",IFERROR(VLOOKUP(ÉrtékesítésiHívásnapló[[#This Row],[Ügyfél]],ÜgyfélElérhetőségiAdatai[],2,0),\"Not Found\"))","v":"Proseware, Inc."},{"$f":"TODAY()-3","v":"2017-10-09"},"11:00:00"]
[null,7,"Pataki Tivadar",{"$f":"IF(ÉrtékesítésiHívásnapló[[#This Row],[Ügyfél]]=\"\",\"\",IFERROR(VLOOKUP(ÉrtékesítésiHívásnapló[[#This Row],[Ügyfél]],ÜgyfélElérhetőségiAdatai[],2,0),\"Not Found\"))","v":"Litware, Inc."},{"$f":"TODAY()-3","v":"2017-10-09"},"11:30:00"]
[null,8,"Szabó János",{"$f":"IF(ÉrtékesítésiHívásnapló[[#This Row],[Ügyfél]]=\"\",\"\",IFERROR(VLOOKUP(ÉrtékesítésiHívásnapló[[#This Row],[Ügyfél]],ÜgyfélElérhetőségiAdatai[],2,0),\"Not Found\"))","v":"Proseware, Inc."},{"$f":"TODAY()-1","v":"2017-10-11"},"12:00:00"]
[null,9,"Váradi Zalán",{"$f":"IF(ÉrtékesítésiHívásnapló[[#This Row],[Ügyfél]]=\"\",\"\",IFERROR(VLOOKUP(ÉrtékesítésiHívásnapló[[#This Row],[Ügyfél]],ÜgyfélElérhetőségiAdatai[],2,0),\"Not Found\"))","v":"Margie's Travel"},{"$f":"TODAY()-1","v":"2017-10-11"},"12:30:00"]
[null,10,"Váradi Zalán",{"$f":"IF(ÉrtékesítésiHívásnapló[[#This Row],[Ügyfél]]=\"\",\"\",IFERROR(VLOOKUP(ÉrtékesítésiHívásnapló[[#This Row],[Ügyfél]],ÜgyfélElérhetőségiAdatai[],2,0),\"Not Found\"))","v":"Margie's Travel"},{"$f":"TODAY()","v":"2017-10-12"},"13:00:00"]

{"sheet":"Ügyfelek elérhetőségi adatai","index":1,"n_rows":8,"n_cols":8,"rows_kept":8}
[null,{"$f":"VállalatNeve","v":" Vállalat neve"}]
[null,"Ügyfelek elérhetőségi adatai"]
[null,"Ügyfél neve","Vállalat neve","Cím","Település, irányítószám","Elsődleges telefonszám","Másodlagos telefonszám","E-mail-cím"]
[null,"Pataki Tivadar","Litware, Inc.","Hosszú utca 100.","7624 Pécs","(1) 555-0135","(1) 555-0136","tivadar@litwareinc.com"]
[null,"Nagy István","Lucerne Publishing","Második körút 567.","6000 Kecskemét","(1) 555-0198","(1) 555-0199","istvan@lucernepublishing.com"]
[null,"Váradi Zalán","Margie's Travel","Narancs utca 987.","8200 Veszprém","(1) 555-0125","(1) 555-0126","zalan@margiestravel.com"]
[null,"Orosz Fanni","Northwind Traders","Harmadik körút 890.","4400 Nyíregyháza","(1) 555-0175","(1) 555-0176","fanni@northwindtraders.com"]
[null,"Szabó János","Proseware, Inc.","Fő út 123.","4030 Debrecen","(1) 555-0150","(1) 555-0151","janos@proseware.com"]

{"sheet":"Hívás előtt","index":2,"n_rows":13,"n_cols":3,"rows_kept":13}
[null,{"$f":"VállalatNeve","v":" Vállalat neve"}]
[null,"Feladatlista értékesítési hívásokhoz"]
[null,"Jelölőnégyzet","Hívás előtt"]
[null,null,"Ügyfélelőzmények megtekintése"]
[null,null,"Ügyfél munkáltatója előzményeinek megtekintése"]
[null,null,"Prioritások és értékesítési stratégia áttekintése"]
[null,null,"Elem hozzáadása"]
[null,null,"Elem hozzáadása"]
[null,null,"Elem hozzáadása"]
[null,null,"Elem hozzáadása"]
[null,null,"Elem hozzáadása"]
[null,null,"Elem hozzáadása"]
[null,null,"Elem hozzáadása"]

{"sheet":"Első hívás","index":3,"n_rows":13,"n_cols":3,"rows_kept":13}
[null,{"$f":"VállalatNeve","v":" Vállalat neve"}]
[null,"Feladatlista értékesítési hívásokhoz"]
[null,"Jelölőnégyzet","Első hívás"]
[null,null,"Közvetlen hívás a megfelelő személynek"]
[null,null,"Világos bemutatkozás"]
[null,null,"Elem hozzáadása"]
[null,null,"Elem hozzáadása"]
[null,null,"Elem hozzáadása"]
[null,null,"Elem hozzáadása"]
[null,null,"Elem hozzáadása"]
[null,null,"Elem hozzáadása"]
[null,null,"Elem hozzáadása"]
[null,null,"Elem hozzáadása"]

{"sheet":"Értékesítési adatok","index":4,"n_rows":13,"n_cols":3,"rows_kept":13}
[null,{"$f":"VállalatNeve","v":" Vállalat neve"}]
[null,"Feladatlista értékesítési hívásokhoz"]
[null,"Jelölőnégyzet","Értékesítési információk"]
[null,null,"A termék/szolgáltatás világos és figyelemfelkeltő bemutatása"]
[null,null,"Az alapok"]
[null,null,"Online jelenlét (például webhely, közösségi hálózatok) megemlítése"]
[null,null,"Elem hozzáadása"]
[null,null,"Elem hozzáadása"]
[null,null,"Elem hozzáadása"]
[null,null,"Elem hozzáadása"]
[null,null,"Elem hozzáadása"]
[null,null,"Elem hozzáadása"]
[null,null,"Elem hozzáadása"]

{"sheet":"További teendők","index":5,"n_rows":13,"n_cols":3,"rows_kept":13}
[null,{"$f":"VállalatNeve","v":" Vállalat neve"}]
[null,"Feladatlista értékesítési hívásokhoz"]
[null,"Jelölőnégyzet","További teendőkkel kapcsolatos információk"]
[null,null,"Ügyfelek elérhetőségi adatai"]
[null,null,"Ügyfél személyes adatai"]
[null,null,"Ügyfél preferenciái"]
[null,null,"Újabb kapcsolatfelvétel?"]
[null,null,"Történt értékesítés?"]
[null,null,"Elem hozzáadása"]
[null,null,"Elem hozzáadása"]
[null,null,"Elem hozzáadása"]
[null,null,"Elem hozzáadása"]
[null,null,"Elem hozzáadása"]